[Event "Cebanenco Memorial 2019"]
[Site "Chisinau"]
[Date "2019.05.16"]
[Round "8.4"]
[White "Morozov, Nichita"]
[Black "Svetushkin, Dmitry"]
[Result "1/2-1/2"]
[ECO "D13"]
[WhiteElo "2371"]
[BlackElo "2536"]
[Annotator "ChessBase"]
[PlyCount "115"]
[EventDate "2019.05.07"]
[EventCountry "MDA"]
[SourceTitle "playchess.com"]
[Source "ChessBase"]
[SourceQuality "1"]
[TimeControl "5400+30"]

1. d4 {[%emt 0:11:25]} d5 {[%emt 0:00:00]} 2. c4 {[%emt 0:00:12]} c6 {[%emt 0:00:00]} 3. cxd5 {[%emt 0:00:09]} cxd5 {[%emt 0:00:00]} 4. Nc3 {[%emt 0:00:07]} Nf6 {[%emt 0:00:07]} 5. Nf3 {[%emt 0:00:07]} Nc6 {[%emt 0:00:06]} 6. Bf4 {[%emt 0:00:04]} Nh5 {[%emt 0:00:12]} 7. Bd2 {[%emt 0:00:38]} Nf6 {[%emt 0:00:56]} 8. Bf4 {[%emt 0:00:29]} Nh5 {[%emt 0:01:16]} 9. Bd2 {[%emt 0:03:06]} e6 {[%emt 0:01:14]} 10. Ne5 {[%emt 0:02:48]} Nf6 {[%emt 0:01:29]} 11. Nxc6 {[%emt 0:01:25]} bxc6 {[%emt 0:00:10]} 12. Rc1 {[%emt 0:07:07]} c5 {[%emt 0:07:26]} 13. e4 {[%emt 0:01:18]} dxe4 {[%emt 0:03:57]} 14. Nb5 {[%emt 0:02:28]} Be7 {[%emt 0:11:02]} 15. dxc5 {[%emt 0:00:10]} O-O {[%emt 0:00:06]} 16. Be2 {[%emt 0:08:42]} a6 {[%emt 0:13:08]} 17. Na3 {[%emt 0:00:09]} Rb8 {[%emt 0:01:55]} 18. b4 {[%emt 0:01:37]} e3 {[%emt 0:06:43]} 19. Bxe3 {[%emt 0:00:58]} Nd5 {[%emt 0:00:06]} 20. Nc2 {[%emt 0:01:42]} Bf6 {[%emt 0:02:29]} 21. Bf3 {[%emt 0:10:50]} Nxe3 {[%emt 0:04:29]} 22. Nxe3 {[%emt 0:01:30]} Rxb4 {[%emt 0:12:31]} 23. O-O {[%emt 0:00:18]} Qa5 {[%emt 0:01:20]} 24. Rc2 {[%emt 0:01:00]} Bd4 {[%emt 0:02:46]} 25. Qd2 {[%emt 0:03:30]} Rd8 {[%emt 0:06:55]} 26. Rd1 {[%emt 0:06:02]} Bf6 {[%emt 0:04:26]} 27. Qe1 {[%emt 0:01:41]} Rxd1 {[%emt 0:00:48]} 28. Qxd1 {[%emt 0:00:31]} Rd4 {[%emt 0:00:50]} 29. Qc1 {[%emt 0:00:40]} Bg5 {[%emt 0:02:48]} 30. g3 {[%emt 0:01:46]} Rd3 {[%emt 0:01:12]} 31. Be4 {[%emt 0:02:37]} Rd4 {[%emt 0:00:51]} 32. Bf3 {[%emt 0:01:05]} Rd3 {[%emt 0:03:50]} 33. Be4 {[%emt 0:00:13]} Bxe3 {[%emt 0:00:08]} 34. fxe3 {[%emt 0:00:30]} Rd8 {[%emt 0:00:06]} 35. Kf2 {[%emt 0:00:00]} h5 {[%emt 0:00:32]} 36. Qb2 {[%emt 0:01:22]} Rd1 {[%emt 0:02:16]} 37. Qc3 {[%emt 0:00:39]} Qb5 {[%emt 0:01:40]} 38. Bg2 {[%emt 0:00:30]} h4 {[%emt 0:03:33]} 39. Rb2 {[%emt 0:01:55]} Qd7 {[%emt 0:00:03]} 40. c6 {[%emt 0:00:00]} Qd6 {[%emt 0:00:00]} 41. Qb4 {[%emt 0:00:00]} Qd8 {[%emt 0:00:00]} 42. Bf3 {[%emt 0:00:00]} Qf6 {[%emt 0:00:00]} 43. Rd2 {[%emt 0:00:00]} Rh1 {[%emt 0:00:00]} 44. Rd8+ {[%emt 0:00:00]} Qxd8 {[%emt 0:00:00]} 45. Bxh1 {[%emt 0:00:00]} Qd1 {[%emt 0:00:00]} 46. Qd4 {[%emt 0:00:00]} Qc2+ {[%emt 0:00:00]} 47. Kg1 {[%emt 0:00:00]} Qb1+ {[%emt 0:00:00]} 48. Kf2 {[%emt 0:00:00]} Qxa2+ {[%emt 0:00:00]} 49. Kg1 {[%emt 0:00:00]} Qb1+ {[%emt 0:00:00]} 50. Kf2 {[%emt 0:00:00]} Qf5+ {[%emt 0:00:00]} 51. Bf3 {[%emt 0:00:00]} hxg3+ {[%emt 0:00:00]} 52. hxg3 {[%emt 0:00:00]} Qf6 {[%emt 0:00:00]} 53. Qd6 {[%emt 0:00:00]} g5 {[%emt 0:00:00]} 54. g4 {[%emt 0:00:00]} Kg7 {[%emt 0:00:00]} 55. Qc7 {[%emt 0:00:00]} Qb2+ {[%emt 0:00:44]} 56. Kg3 {[%emt 0:00:00]} Qa1 {[%emt 0:00:07]} 57. Kg2 {[%emt 0:00:00]} Qb2+ {[%emt 0:00:13]} 58. Kg3 {[%emt 0:00:00]} 1/2-1/2

[Event "Cebanenco Memorial 2019"]
[Site "Chisinau"]
[Date "2019.05.16"]
[Round "8.5"]
[White "Miron, Lucian-Costin"]
[Black "Hamitevici, Vladimir"]
[Result "1-0"]
[ECO "A58"]
[WhiteElo "2472"]
[BlackElo "2476"]
[Annotator "ChessBase"]
[PlyCount "103"]
[EventDate "2019.05.07"]
[EventCountry "MDA"]
[SourceTitle "playchess.com"]
[Source "ChessBase"]
[SourceQuality "1"]
[TimeControl "5400+30"]

1. d4 {[%emt 0:00:00]} Nf6 {[%emt 0:13:14]} 2. c4 {[%emt 0:00:00]} c5 {[%emt 0:00:05]} 3. d5 {[%emt 0:00:00]} b5 {[%emt 0:00:16]} 4. cxb5 {[%emt 0:00:00]} a6 {[%emt 0:00:03]} 5. bxa6 {[%emt 0:00:00]} g6 {[%emt 0:00:05]} 6. Nc3 {[%emt 0:00:00]} Bg7 {[%emt 0:00:06]} 7. e4 {[%emt 0:00:52]} O-O {[%emt 0:00:15]} 8. Nf3 {[%emt 0:00:07]} Qa5 {[%emt 0:00:10]} 9. Bd2 {[%emt 0:00:04]} Bxa6 {[%emt 0:00:43]} 10. Be2 {[%emt 0:00:26]} Bxe2 {[%emt 0:02:53]} 11. Qxe2 {[%emt 0:00:13]} Qa6 {[%emt 0:00:06]} 12. a4 {[%emt 0:02:34]} e6 {[%emt 0:00:34]} 13. dxe6 {[%emt 0:16:52]} Qxe2+ {[%emt 0:03:35]} 14. Kxe2 {[%emt 0:01:08]} fxe6 {[%emt 0:00:06]} 15. Be3 {[%emt 0:24:27]} Na6 {[%emt 0:04:21]} 16. Rhd1 {[%emt 0:00:13]} Rfb8 {[%emt 0:07:22]} 17. Rab1 {[%emt 0:00:53]} Rb7 {[%emt 0:00:40]} 18. h3 {[%emt 0:08:43]} Rab8 {[%emt 0:01:25]} 19. e5 {[%emt 0:02:14]} Ne8 {[%emt 0:00:12]} 20. Nb5 {[%emt 0:04:23]} Nec7 {[%emt 0:02:24]} 21. Rxd7 {[%emt 0:02:15]} Nxb5 {[%emt 0:00:07]} 22. Rxb7 {[%emt 0:00:05]} Rxb7 {[%emt 0:00:04]} 23. axb5 {[%emt 0:00:08]} Rxb5 {[%emt 0:00:04]} 24. b3 {[%emt 0:05:29]} h6 {[%emt 0:01:20]} 25. h4 {[%emt 0:02:53]} Nb8 {[%emt 0:06:09]} 26. Rc1 {[%emt 0:04:38]} Nd7 {[%emt 0:00:24]} 27. Nd2 {[%emt 0:00:14]} Bxe5 {[%emt 0:00:09]} 28. Bxh6 {[%emt 0:00:19]} Ra5 {[%emt 0:08:38]} 29. Be3 {[%emt 0:04:26]} Bf6 {[%emt 0:02:50]} 30. g3 {[%emt 0:00:45]} Kf7 {[%emt 0:00:18]} 31. Rc4 {[%emt 0:05:09]} Rb5 {[%emt 0:03:59]} 32. Ra4 {[%emt 0:01:13]} Rb7 {[%emt 0:00:02]} 33. Ne4 {[%emt 0:01:54]} Be7 {[%emt 0:00:16]} 34. Nd2 {[%emt 0:02:47]} Bf6 {[%emt 0:00:54]} 35. g4 {[%emt 0:04:45]} Be7 {[%emt 0:01:01]} 36. h5 {[%emt 0:01:46]} gxh5 {[%emt 0:00:13]} 37. gxh5 {[%emt 0:00:04]} Nf6 {[%emt 0:00:12]} 38. h6 {[%emt 0:00:24]} Bf8 {[%emt 0:05:32]} 39. Ne4 {[%emt 0:03:10]} Nh7 {[%emt 0:01:51]} 40. Nd2 {[%emt 0:00:00]} Kg6 {[%emt 0:00:00]} 41. Ra6 {[%emt 0:00:00]} Kf5 {[%emt 0:00:00]} 42. Kd3 {[%emt 0:00:00]} Nf6 {[%emt 0:00:00]} 43. Ra8 {[%emt 0:00:00]} Rf7 {[%emt 0:00:00]} 44. Nf3 {[%emt 0:00:00]} Nh7 {[%emt 0:00:00]} 45. Kc4 {[%emt 0:00:00]} Rb7 {[%emt 0:00:00]} 46. Bxc5 {[%emt 0:00:00]} Bxh6 {[%emt 0:00:00]} 47. Nd4+ {[%emt 0:00:00]} Ke5 {[%emt 0:00:00]} 48. Nxe6 {[%emt 0:00:00]} Bd2 {[%emt 0:00:00]} 49. Nd4 {[%emt 0:00:00]} Kf4 {[%emt 0:00:00]} 50. b4 {[%emt 0:00:00]} Bxb4 {[%emt 0:00:00]} 51. Bxb4 {[%emt 0:00:00]} Rf7 {[%emt 0:00:00]} 52. Bd6+ {[%emt 0:00:00]} 1-0

[Event "Cebanenco Memorial 2019"]
[Site "Chisinau"]
[Date "2019.05.15"]
[Round "9.4"]
[White "Lashkin, Jegor"]
[Black "Macovei, Andrei"]
[Result "1/2-1/2"]
[ECO "C47"]
[WhiteElo "2313"]
[BlackElo "2432"]
[Annotator "NA RC"]
[PlyCount "29"]
[EventDate "2019.05.07"]
[EventCountry "MDA"]
[SourceTitle "playchess.com"]
[Source "ChessBase"]
[SourceQuality "1"]
[TimeControl "40/5400+30:1800+30"]

1. e4 {[%emt 0:00:00]} e5 {[%emt 0:00:53]} 2. Nf3 {[%emt 0:00:12]} Nc6 {[%emt 0:00:03]} 3. Nc3 {[%emt 0:00:34]} Nf6 {[%emt 0:02:56]} 4. d4 {[%emt 0:00:44]} exd4 {[%emt 0:03:05]} 5. Nxd4 {[%emt 0:00:24]} Bc5 {[%emt 0:03:04]} 6. Be3 {[%emt 0:00:34]} Bb6 {[%emt 0:01:32]} 7. Qd2 $14 {[%emt 0:06:03]} O-O {[%emt 0:17:44]} 8. O-O-O {[%emt 0:05:33]} Re8 {[%emt 0:00:42]} 9. f3 {[%emt 0:07:08]} d5 {[%emt 0:04:12]} 10. Bb5 {[%emt 0:15:41]} Bd7 {[%emt 0:09:03]} 11. exd5 {[%emt 0:17:34]} Ne5 {[%emt 0:11:58]} 12. Be2 {[%emt 0:09:22]} Bc8 {[%emt 0:11:15]} 13. Bb5 {[%emt 0:05:25]} Bd7 {[%emt 0:00:05]} 14. Be2 {[%emt 0:00:08]} Bc8 {[%emt 0:00:05]} 15. Bb5 {[%emt 0:04:34]} 1/2-1/2